lending/lending_fUSD_20250210
["ID","MTS","AMOUNT","RATE_DAILY","PERIOD"]
[352620946,1739202658767,-500.0,0.00011232,2]
[352620948,1739202658777,-500.0,0.00011232,2]
[352620950,1739202658787,-500.0,0.00011232,2]
[352620952,1739202658798,-1048.02,0.00011232,2]
[352620954,1739202658808,-638.08,0.00011232,2]
[352620956,1739202658819,-500.0,0.00011232,2]
[352620958,1739202658829,-500.0,0.00011232,2]
[352620960,1739202658840,-621.58,0.00011232,2]
[352620962,1739202658850,-820.97,0.00011232,2]
[352620964,1739202658860,-500.0,0.00011232,2]
[352620966,1739202658870,-1782.51,0.00011232,2]
[352620968,1739202658880,-1361.82,0.00011232,2]
[352620970,1739202658890,-250.26001344,0.00011232,2]
[352620972,1739202658900,-500.0,0.00011232,2]
[352620974,1739202658909,-500.0,0.00011232,2]
[352620976,1739202658919,-3092.73,0.00011232,2]
[352620978,1739202658935,-500.0,0.00011232,2]
[352620980,1739202658946,-500.0,0.00011232,2]
[352620982,1739202658955,-500.0,0.00011232,2]
[352620984,1739202658965,-500.0,0.00011232,2]
[352620986,1739202658975,-943.9,0.00011232,2]
[352620988,1739202658985,-500.0,0.00011232,2]
[352620990,1739202658994,-1308.53,0.00011232,2]
[352620992,1739202659005,-1212.93,0.00011232,2]
[352620994,1739202659015,-864.08,0.00011232,2]
[352620996,1739202659024,-500.0,0.00011232,2]
[352620998,1739202659033,-925.03,0.00011232,2]
[352621000,1739202659042,-522.95490872,0.00011232,2]
[352621002,1739202659052,-500.0,0.00011232,2]
[352621004,1739202659061,-500.0,0.00011232,2]
[352621006,1739202659071,-500.0,0.00011232,2]
[352621008,1739202659081,-962.94,0.00011232,2]
[352621010,1739202659090,-500.0,0.00011232,2]
[352621012,1739202659099,-500.0,0.00011232,2]
[352621014,1739202659108,-500.0,0.00011232,2]
[352621016,1739202659117,-500.0,0.00011232,2]
[352621018,1739202659126,-500.0,0.00011232,2]
[352621020,1739202659136,-794.93,0.00011232,2]
[352621022,1739202659145,-500.0,0.00011232,2]
[352621024,1739202659154,-1820.6,0.00011232,2]
[352621025,1739202659164,-1051.13,0.00011232,2]
[352621026,1739202659173,-1410.97,0.00011232,2]
[352621027,1739202659182,-500.0,0.00011232,2]
[352621028,1739202659191,-665.0,0.00011232,2]
[352621029,1739202659200,-663.55,0.00011232,2]
[352621030,1739202659210,-217.01707151,0.00011232,2]
[352621031,1739202659219,-500.0,0.00011232,2]
[352621032,1739202659229,-713.17,0.00011232,2]
[352621034,1739202659238,-500.0,0.00011232,2]
[352621036,1739202659247,-500.0,0.00011232,2]
[352621038,1739202659259,-1754.03,0.00011232,2]
[352621040,1739202659268,-500.0,0.00011232,2]
[352621043,1739202659278,-500.0,0.00011232,2]
[352621044,1739202659288,-2226.97,0.00011232,2]
[352621046,1739202659297,-500.0,0.00011232,2]
[352621049,1739202659307,-500.0,0.00011232,2]
[352621050,1739202659317,-548.87,0.00011232,2]
[352621052,1739202659327,-1679.81,0.00011232,2]
[352621054,1739202659336,-500.0,0.00011232,2]
[352621057,1739202659346,-500.0,0.00011232,2]
[352621059,1739202659355,-500.0,0.00011232,2]
[352621061,1739202659365,-500.0,0.00011232,2]
[352621063,1739202659375,-482.18370851,0.00011232,2]
[352621065,1739202659384,-152.53140331,0.00011232,2]
[352621067,1739202659393,-500.0,0.00011232,2]
[352621069,1739202659403,-500.0,0.00011232,2]
[352621071,1739202659412,-500.0,0.00011232,2]
[352621073,1739202659423,-628.9,0.00011232,2]
[352621075,1739202659432,-500.0,0.00011232,2]
[352621077,1739202659442,-500.0,0.00011232,2]
[352621079,1739202659452,-581.22,0.00011232,2]
[352621080,1739202659462,-500.0,0.00011232,2]
[352621082,1739202659472,-500.0,0.00011232,2]
[352621084,1739202659482,-500.0,0.00011232,2]
[352621087,1739202659492,-500.0,0.00011232,2]
[352621089,1739202659502,-500.0,0.00011232,2]
[352621091,1739202659512,-811.48,0.00011232,2]
[352621092,1739202659522,-500.0,0.00011232,2]
[352621094,1739202659531,-500.0,0.00011232,2]
[352621096,1739202659540,-500.0,0.00011232,2]
[352621098,1739202659549,-1185.33,0.00011232,2]
[352621100,1739202659559,-500.0,0.00011232,2]
[352621102,1739202659569,-683.03,0.00011232,2]
[352621104,1739202659578,-1317.33,0.00011232,2]
[352621106,1739202659588,-15.48944086,0.00011232,2]
[352621109,1739202659603,-484.51055914,0.00011232,2]
[352621111,1739202659613,-500.0,0.00011232,2]
[352621113,1739202659622,-500.0,0.00011232,2]
[352621115,1739202659631,-618.47,0.00011232,2]
[352621117,1739202659640,-1039.74,0.00011232,2]
[352621119,1739202659650,-505.96421061,0.00011232,2]
[352621121,1739202659660,-500.0,0.00011232,2]
[352621123,1739202659671,-152.90123025,0.00011232,2]
[352621151,1739202659952,-435.15,0.00010958,2]
[352621153,1739202659965,-64.85,0.00010958,2]
[352621155,1739202659976,-500.0,0.00011095,2]
[352621157,1739202659986,-347.09876975,0.00011232,2]
[352621159,1739202659996,-104.6512305,0.00011232,2]
[352621162,1739202660013,-407.45226212,0.00011232,2]
[352621164,1739202660023,-500.0,0.00011232,2]
[352621166,1739202660033,-500.0,0.00011232,2]
[352621168,1739202660043,-182.54773775,0.00011232,2]
[352621170,1739202660055,-1235.92226225,0.00011232,2]
[352621172,1739202660065,-515.49652386,0.00011232,2]
[352621174,1739202660075,-500.0,0.00011232,2]
[352621176,1739202660084,-500.0,0.00011232,2]
[352621178,1739202660093,-500.0,0.00011232,2]
[352621180,1739202660103,-500.0,0.00011232,2]
[352621182,1739202660113,-849.56675249,0.00011232,2]
[352621184,1739202660125,-150.43324751,0.00011232,2]
[352621186,1739202660134,-816.71098289,0.00011232,2]
[352621188,1739202660146,-613.30901711,0.00011232,2]
[352621190,1739202660157,-506.46704134,0.00011232,2]
[352621192,1739202660167,-500.0,0.00011232,2]
[352621194,1739202660177,-500.0,0.00011232,2]
[352621196,1739202660187,-500.0,0.00011232,2]
[352621198,1739202660196,-990.59,0.00011232,2]
[352621200,1739202660206,-500.0,0.00011232,2]
[352621202,1739202660216,-500.0,0.00011232,2]
[352621204,1739202660227,-500.0,0.00011232,2]
[352621206,1739202660236,-93.73248448,0.00011232,2]
[352621208,1739202660249,-505.46751552,0.00011232,2]
[352621211,1739202660258,-479.2396765,0.00011232,2]
[352621213,1739202660270,-20.7603235,0.00011232,2]
[352621215,1739202660280,-500.0,0.00011232,2]
[352621217,1739202660289,-933.75523959,0.00011232,2]
[352621219,1739202660301,-446.98476041,0.00011232,2]
[352621221,1739202660310,-297.63185209,0.00011232,2]
[352621383,1739202840933,394.0048986,0.0002,120]
[352621384,1739203231084,150.0,0.00019681,120]
[352621385,1739203290718,150.0,0.00019934,120]
[352621386,1739203471441,150.0,0.0001975,120]
[352621399,1739203650761,150.0,0.0001968,120]
[352621400,1739203710785,150.0,0.00019888,120]
[352621414,1739203832031,-655.04,8.219e-05,2]
[352621415,1739203832041,-500.0,8.459e-05,2]
[352621416,1739203832050,-5787.961,8.836e-05,2]
[352621417,1739203832059,-3874.0724,8.973e-05,2]
[352621418,1739203832069,-511.77687127,8.973e-05,2]
[352621419,1739203832231,-196.27547794,8.973e-05,2]
[352621420,1739203832242,-500.0,9.041e-05,2]
[352621421,1739203832252,-500.0,9.041e-05,2]
[352621422,1739203832261,-628.7,9.701e-05,2]
[352621423,1739203832270,-311.91,9.709e-05,2]
[352621424,1739203832279,-166.87,9.808e-05,2]
[352621425,1739203832290,-1000.0,9.993e-05,2]
[352621426,1739203832302,-382.78,9.993e-05,2]
[352621427,1739203832311,-169.55,0.00010008,2]
[352621428,1739203832320,-269.04,0.00010028,2]
[352621429,1739203832329,-150.0,0.00010332,2]
[352621430,1739203832341,-250.0,0.00010424,2]
[352621431,1739203832350,-490.63,0.00010446,2]
[352621432,1739203832360,-499.64,0.00010458,2]
[352621433,1739203832370,-492.44,0.00010475,2]
[352621434,1739203832380,-655.04,0.00010483,2]
[352621435,1739203832390,-497.18,0.000105,2]
[352621436,1739203832399,-509.73,0.00010538,2]
[352621437,1739203832408,-507.96,0.00010594,2]
[352621438,1739203832417,-498.28,0.00010679,2]
[352621439,1739203832426,-495.83,0.00010808,2]
[352621440,1739203832435,-150.0,0.00010808,2]
[352621441,1739203832444,-502.55641872,0.00010858,2]
[352621442,1739203832453,-492.56,0.00010958,2]
[352621443,1739203832463,-498.96,0.00010958,2]
[352621445,1739203832473,-546.23099366,0.00010958,2]
[352621447,1739203832482,-417.356214,0.00010958,2]
[352621449,1739203832491,-500.0,0.00010958,2]
[352621451,1739203832502,-626.65545898,0.00010958,2]
[352621453,1739203832512,-500.62008193,0.00010958,2]
[352621455,1739203832522,-502.49610675,0.00010958,2]
[352621457,1739203832532,-151.0,0.00010958,2]
[352621459,1739203832542,-500.0,0.00010958,2]
[352621461,1739203832552,-278.04356115,0.00010958,2]
[352621463,1739203832561,-500.0,0.00010958,2]
[352621465,1739203832571,-500.0,0.00010958,2]
[352621467,1739203832581,-500.0,0.00010958,2]
[352621469,1739203832591,-500.0,0.00010958,2]
[352621471,1739203832600,-500.0,0.00010958,2]
[352621473,1739203832610,-235.05279851,0.00010958,2]
[352621475,1739203832619,-500.0,0.00010958,2]
[352621477,1739203832629,-500.59936605,0.00010958,2]
[352621479,1739203832638,-500.0,0.00010958,2]
[352621481,1739203832648,-500.0,0.00010958,2]
[352621483,1739203832658,-500.0,0.00010958,2]
[352621485,1739203832668,-500.0,0.00010958,2]
[352621487,1739203832677,-500.0,0.00010958,2]
[352621489,1739203832687,-500.23759652,0.00010958,2]
[352621491,1739203832696,-500.0,0.00010958,2]
[352621493,1739203832705,-500.0,0.00010958,2]
[352621495,1739203832715,-500.0,0.00010958,2]
[352621497,1739203832725,-500.0,0.00010958,2]
[352621500,1739203832734,-500.0,0.00010958,2]
[352621502,1739203832744,-500.0,0.00010958,2]
[352621504,1739203832754,-500.0,0.00010958,2]
[352621507,1739203832763,-500.0,0.00010958,2]
[352621509,1739203832772,-500.0,0.00010958,2]
[352621510,1739203832782,-500.0,0.00010958,2]
[352621513,1739203832791,-500.0,0.00010958,2]
[352621514,1739203832800,-202.93245154,0.00010958,2]
[352621516,1739203832810,-500.0,0.00010958,2]
[352621519,1739203832820,-500.0,0.00010958,2]
[352621520,1739203832830,-500.23140016,0.00010958,2]
[352621522,1739203832839,-300.0,0.00010958,2]
[352621524,1739203832849,-500.0,0.00010958,2]
[352621526,1739203832859,-500.0,0.00010958,2]
[352621528,1739203832869,-500.69784102,0.00010958,2]
[352621530,1739203832878,-500.0,0.00010958,2]
[352621532,1739203832887,-500.0,0.00010958,2]
[352621534,1739203832897,-500.95244699,0.00010958,2]
[352621536,1739203832906,-501.3413837,0.00010958,2]
[352621538,1739203832916,-500.6885712,0.00010958,2]
[352621540,1739203832926,-501.32895334,0.00010958,2]
[352621542,1739203832935,-500.0,0.00010958,2]
[352621544,1739203832944,-501.17652186,0.00010958,2]
[352621546,1739203832954,-284.06189572,0.00010958,2]
[352621549,1739203832968,-358.41420484,0.00010958,2]
[352621551,1739203832978,-500.42489389,0.00010958,2]
[352621553,1739203832987,-500.36724839,0.00010958,2]
[352621555,1739203832997,-501.06300766,0.00010958,2]
[352621557,1739203833007,-501.2468549,0.00010958,2]
[352621559,1739203833017,-180.38506323,0.00010958,2]
[352621561,1739203833028,-501.26226508,0.00010958,2]
[352621563,1739203833038,-501.10840495,0.00010958,2]
[352621565,1739203833047,-501.94834927,0.00010958,2]
[352621567,1739203833061,-65.00709319,0.00010958,2]
[352621571,1739203833086,-437.52256615,0.00010958,2]
[352621573,1739203833096,-520.42665102,0.00010958,2]
[352621575,1739203833105,-501.30255687,0.00010958,2]
[352621577,1739203833114,-500.97891254,0.00010958,2]
[352621579,1739203833123,-501.57271136,0.00010958,2]
[352621581,1739203833133,-502.5661865,0.00010958,2]
[352621583,1739203833142,-501.11952818,0.00010958,2]
[352621584,1739203833152,-501.98791673,0.00010958,2]
[352621587,1739203833163,-501.69770344,0.00010958,2]
[352621588,1739203833172,-501.3235495,0.00010958,2]
[352621590,1739203833182,-500.0,0.00010958,2]
[352621592,1739203833191,-500.48232701,0.00010958,2]
[352621594,1739203833201,-500.0,0.00010958,2]
[352621596,1739203833210,-500.0,0.00010958,2]
[352621598,1739203833220,-500.0,0.00010958,2]
[352621600,1739203833230,-500.0,0.00010958,2]
[352621602,1739203833240,-530.52758283,0.00010958,2]
[352621604,1739203833251,-500.0,0.00010958,2]
[352621606,1739203833261,-500.0,0.00010958,2]
[352621608,1739203833271,-500.0,0.00010958,2]
[352621610,1739203833281,-500.0,0.00010958,2]
[352621612,1739203833291,-500.0,0.00010958,2]
[352621614,1739203833302,-500.0,0.00010958,2]
[352621616,1739203833313,-500.0,0.00010958,2]
[352621618,1739203833323,-500.0,0.00010958,2]
[352621620,1739203833333,-500.0,0.00010958,2]
[352621622,1739203833343,-500.0,0.00010958,2]
[352621624,1739203833352,-450.0,0.00010958,2]
[352621626,1739203833362,-500.0,0.00010958,2]
[352621628,1739203833371,-500.0,0.00010958,2]
[352621630,1739203833381,-500.0,0.00010958,2]
[352621632,1739203833390,-500.0,0.00010958,2]
[352621634,1739203833399,-205.87415608,0.00010958,2]
[352621636,1739203833409,-500.0,0.00010958,2]
[352621638,1739203833419,-500.0,0.00010958,2]
[352621640,1739203833429,-500.0,0.00010958,2]
[352621642,1739203833439,-500.0,0.00010958,2]
[352621644,1739203833449,-500.0,0.00010958,2]
[352621646,1739203833458,-500.0,0.00010958,2]
[352621648,1739203833468,-500.0,0.00010958,2]
[352621650,1739203833478,-500.0,0.00010958,2]
[352621652,1739203833487,-500.0,0.00010958,2]
[352621654,1739203833498,-500.0,0.00010958,2]
[352621656,1739203833507,-500.0,0.00010958,2]
[352621658,1739203833517,-500.0,0.00010958,2]
[352621660,1739203833526,-500.0,0.00010958,2]
[352621662,1739203833536,-500.0,0.00010958,2]
[352621664,1739203833547,-500.0,0.00010958,2]
[352621666,1739203833556,-500.0,0.00010958,2]
[352621668,1739203833566,-500.0,0.00010958,2]
[352621670,1739203833576,-500.0,0.00010958,2]
[352621672,1739203833587,-500.0,0.00010958,2]
[352621674,1739203833599,-500.0,0.00010958,2]
[352621675,1739203833609,-500.0,0.00010958,2]
[352621676,1739203833620,-500.0,0.00010958,2]
[352621677,1739203833632,-500.0,0.00010958,2]
[352621678,1739203833642,-500.0,0.00010958,2]
[352621679,1739203833652,-500.0,0.00010958,2]
[352621680,1739203833662,-500.0,0.00010958,2]
[352621681,1739203833672,-500.0,0.00010958,2]
[352621682,1739203833681,-500.0,0.00010958,2]
[352621683,1739203833691,-500.0,0.00010958,2]
[352621684,1739203833701,-500.0,0.00010958,2]
[352621685,1739203833711,-500.0,0.00010958,2]
[352621687,1739203833720,-500.0,0.00010958,2]
[352621689,1739203833730,-500.0,0.00010958,2]
[352621691,1739203833740,-500.0,0.00010958,2]
[352621693,1739203833750,-500.0,0.00010958,2]
[352621695,1739203833761,-500.0,0.00010958,2]
[352621697,1739203833772,-500.0,0.00010958,2]
[352621699,1739203833782,-500.0,0.00010958,2]
[352621701,1739203833793,-500.0,0.00010958,2]
[352621703,1739203833803,-500.0,0.00010958,2]
[352621705,1739203833813,-500.0,0.00010958,2]
[352621707,1739203833824,-500.0,0.00010958,2]
[352621709,1739203833834,-1414.24,0.00010958,2]
[352621711,1739203833843,-500.0,0.00010958,2]
[352621713,1739203833853,-500.0,0.00010958,2]
[352621715,1739203833863,-500.0,0.00010958,2]
[352621717,1739203833873,-500.0,0.00010958,2]
[352621719,1739203833884,-500.0,0.00010958,2]
[352621721,1739203833894,-500.0,0.00010958,2]
[352621724,1739203833904,-500.0,0.00010958,2]
[352621726,1739203833914,-500.0,0.00010958,2]
[352621728,1739203833924,-500.0,0.00010958,2]
[352621730,1739203833933,-359.60875386,0.00010958,2]
[352621732,1739203833943,-500.0,0.00010958,2]
[352621734,1739203833952,-500.0,0.00010958,2]
[352621736,1739203833962,-278.58167217,0.00010958,2]
[352621737,1739203833972,-500.0,0.00010958,2]
[352621740,1739203833982,-584.46,0.00010958,2]
[352621742,1739203833993,-500.0,0.00010958,2]
[352621744,1739203834004,-500.0,0.00010958,2]
[352621746,1739203834014,-500.0,0.00010958,2]
[352621747,1739203834024,-500.0,0.00010958,2]
[352621750,1739203834033,-500.0,0.00010958,2]
[352621752,1739203834043,-500.0,0.00010958,2]
[352621754,1739203834052,-500.0,0.00010958,2]
[352621756,1739203834062,-500.0,0.00010958,2]
[352621758,1739203834072,-50.72722574,0.00010958,2]
[352621760,1739203834086,-294.29499367,0.00010958,2]
[352621762,1739203834099,-154.97778059,0.00010958,2]
[352621764,1739203834109,-500.0,0.00010958,2]
[352621766,1739203834118,-74.37851812,0.00010958,2]
[352621768,1739203834130,-330.63571685,0.00010958,2]
[352621771,1739203834142,-94.98576503,0.00010958,2]
[352621773,1739203834152,-494.23923247,0.00010958,2]
[352621776,1739203834176,-5.76076753,0.00010958,2]
[352621778,1739203834186,-380.15909981,0.00010958,2]
[352621780,1739203834198,-119.84090019,0.00010958,2]
[352621782,1739203834207,-500.0,0.00010958,2]
[352621784,1739203834217,-500.0,0.00010958,2]
[352621786,1739203834227,-500.0,0.00010958,2]
[352621788,1739203834237,-500.0,0.00010958,2]
[352621790,1739203834249,-500.0,0.00010958,2]
[352621792,1739203834259,-500.0,0.00010958,2]
[352621794,1739203834270,-511.73629892,0.00010958,2]
[352621797,1739203834281,-500.0,0.00010958,2]
[352621799,1739203834292,-500.0,0.00010958,2]
[352621801,1739203834305,-500.0,0.00010958,2]
[352621803,1739203834315,-500.0,0.00010958,2]
[352621805,1739203834325,-500.0,0.00010958,2]
[352621806,1739203834336,-500.0,0.00010958,2]
[352621808,1739203834347,-500.0,0.00010958,2]
[352621810,1739203834358,-500.0,0.00010958,2]
[352621812,1739203834368,-500.0,0.00010958,2]
[352621814,1739203834379,-500.0,0.00010958,2]
[352621816,1739203834390,-500.0,0.00010958,2]
[352621818,1739203834400,-500.0,0.00010958,2]
[352621820,1739203834410,-500.0,0.00010958,2]
[352621822,1739203834419,-500.0,0.00010958,2]
[352621824,1739203834429,-500.0,0.00010958,2]
[352621826,1739203834439,-500.0,0.00010958,2]
[352621828,1739203834449,-500.0,0.00010958,2]
[352621830,1739203834458,-502.06562856,0.00010958,2]
[352621832,1739203834468,-500.0,0.00010958,2]
[352621834,1739203834478,-500.0,0.00010958,2]
[352621836,1739203834488,-500.0,0.00010958,2]
[352621838,1739203834498,-500.0,0.00010958,2]
[352621839,1739203834508,-505.93959485,0.00010958,2]
[352621840,1739203834517,-502.85360559,0.00010958,2]
[352621841,1739203834527,-500.0,0.00010958,2]
[352621842,1739203834536,-500.0,0.00010958,2]
[352621843,1739203834545,-500.0,0.00010958,2]
[352621844,1739203834555,-379.68,0.00010958,2]
[352621845,1739203834564,-500.0,0.00010958,2]
[352621846,1739203834574,-502.30211519,0.00010958,2]
[352621847,1739203834584,-500.0,0.00010958,2]
[352621848,1739203834594,-500.0,0.00010958,2]
[352621849,1739203834603,-500.0,0.00010958,2]
[352621850,1739203834613,-500.0,0.00010958,2]
[352621851,1739203834646,-500.0,0.00010958,2]
[352621852,1739203834656,-240.88987828,0.00010958,2]
[352621853,1739203834665,-500.0,0.00010958,2]
[352621854,1739203834675,-515.10392454,0.00010958,2]
[352621855,1739203834684,-500.0,0.00010958,2]
[352621856,1739203834693,-500.0,0.00010958,2]
[352621857,1739203834703,-500.0,0.00010958,2]
[352621858,1739203834712,-500.0,0.00010958,2]
[352621859,1739203834721,-500.0,0.00010958,2]
[352621860,1739203834731,-500.0,0.00010958,2]
[352621861,1739203834740,-500.0,0.00010958,2]
[352621862,1739203834750,-500.0,0.00010958,2]
[352621863,1739203834759,-500.0,0.00010958,2]
[352621864,1739203834925,-500.0,0.00010958,2]
[352621865,1739203834935,-500.0,0.00010958,2]
[352621866,1739203834944,-500.0,0.00010958,2]
[352621867,1739203834954,-880.68,0.00010958,2]
[352621868,1739203834963,-502.02980618,0.00010958,2]
[352621869,1739203834972,-500.0,0.00010958,2]
[352621870,1739203834981,-500.0,0.00010958,2]
[352621871,1739203834991,-500.0,0.00010958,2]
[352621872,1739203835001,-585.28,0.00010958,2]
[352621873,1739203835011,-500.0,0.00010958,2]
[352621874,1739203835025,-591.89,0.00010958,2]
[352621875,1739203835038,-500.0,0.00010958,2]
[352621876,1739203835047,-500.0,0.00010958,2]
[352621877,1739203835057,-500.0,0.00010958,2]
[352621878,1739203835066,-500.0,0.00010958,2]
[352621879,1739203835076,-500.0,0.00010958,2]
[352621880,1739203835085,-868.21,0.00010958,2]
[352621881,1739203835094,-1367.94,0.00010958,2]
[352621882,1739203835104,-500.0,0.00010958,2]
[352621883,1739203835113,-500.0,0.00010958,2]
[352621884,1739203835122,-500.0,0.00010958,2]
[352621885,1739203835131,-500.0,0.00010958,2]
[352621886,1739203835140,-500.0,0.00010958,2]
[352621887,1739203835149,-1274.93,0.00010958,2]
[352621888,1739203835159,-834.01,0.00010958,2]
[352621889,1739203835168,-628.6,0.00010958,2]
[352621890,1739203835177,-952.12,0.00010958,2]
[352621891,1739203835187,-500.0,0.00010958,2]
[352621892,1739203835196,-586.22,0.00010958,2]
[352621893,1739203835205,-3192.04,0.00010958,2]
[352621894,1739203835215,-500.0,0.00010958,2]
[352621895,1739203835224,-903.77,0.00010958,2]
[352621896,1739203835234,-510.76,0.00010958,2]
[352621897,1739203835244,-1118.99,0.00010958,2]
[352621898,1739203835260,-500.0,0.00010958,2]
[352621899,1739203835275,-500.0,0.00010958,2]
[352621900,1739203835284,-699.83,0.00010958,2]
[352621901,1739203835295,-500.0,0.00010958,2]
[352621902,1739203835308,-887.16,0.00010958,2]
[352621903,1739203835318,-500.0,0.00010958,2]
[352621904,1739203835327,-500.0,0.00010958,2]
[352621905,1739203835338,-500.0,0.00010958,2]
[352621906,1739203835348,-500.0,0.00010958,2]
[352621907,1739203835357,-1089.45,0.00010958,2]
[352621908,1739203835367,-500.0,0.00010958,2]
[352621909,1739203835378,-676.61,0.00010958,2]
[352621910,1739203835387,-500.0,0.00010958,2]
[352621911,1739203835397,-1092.97,0.00010958,2]
[352621912,1739203835407,-1728.28,0.00010958,2]
[352621913,1739203835416,-295.95167549,0.00010958,2]
[352621914,1739203835426,-500.0,0.00010958,2]
[352621915,1739203835436,-500.0,0.00010958,2]
[352621916,1739203835446,-694.17,0.00010958,2]
[352621917,1739203835455,-1345.61,0.00010958,2]
[352621918,1739203835464,-500.0,0.00010958,2]
[352621919,1739203835475,-500.0,0.00010958,2]
[352621920,1739203835485,-544.19,0.00010958,2]
[352621921,1739203835494,-1166.1,0.00010958,2]
[352621922,1739203835507,-500.0,0.00010958,2]
[352621923,1739203835517,-543.97,0.00010958,2]
[352621924,1739203835526,-500.0,0.00010958,2]
[352621925,1739203835536,-1490.57,0.00010958,2]
[352621926,1739203835546,-500.0,0.00010958,2]
[352621927,1739203835555,-1837.51,0.00010958,2]
[352621928,1739203835565,-500.0,0.00010958,2]
[352621929,1739203835574,-500.0,0.00010958,2]
[352621930,1739203835584,-595.12,0.00010958,2]
[352621931,1739203835594,-500.0,0.00010958,2]
[352621932,1739203835603,-817.0,0.00010958,2]
[352621933,1739203835613,-509.51,0.00010958,2]
[352621934,1739203835622,-66807.03607225,0.00010958,2]
[352621935,1739203835922,-21188.901687,0.00010958,2]
[352621936,1739203835933,-22045.99999999,0.00010958,2]
[352621941,1739203837892,-500.0,0.00010958,2]
[352621942,1739203837901,-4471.340227,0.00010958,2]
[352621943,1739203838109,-17498.67564213,0.00010958,2]
[352621944,1739203838208,-500.0,0.00010958,2]
[352621945,1739203838218,-18790.5983007,0.00010958,2]
[352621946,1739203838229,-78075.60772083,0.00010958,2]
[352621947,1739203838238,-9550.58895753,0.00011,2]
[352622111,1739203839937,-500.0,0.00010958,2]
[352622113,1739203839949,-24969.58281239,0.00011,2]
[352622119,1739203839991,-584.76430095,0.00011,2]
[352622125,1739203840045,-3492.3291753,0.00011,2]
[352622128,1739203840056,-399.82999998,0.00011,2]
[352622133,1739203840099,-1024.3297049,0.00011,2]
[352622146,1739203840208,-272.99484232,0.00011,2]
[352622148,1739203840220,-29364.28239146,0.00011,2]
[352622153,1739203840262,-55299.999999,0.00011,2]
[352622409,1739203842940,-843.99,0.00010958,2]
[352622412,1739203842950,-500.0,0.00010958,2]
[352622414,1739203842960,-1309.72400635,0.00011,2]
[352622416,1739203842971,-56464.0,0.00011,2]
[352622430,1739203843096,-12150.27028954,0.00011,2]
[352622432,1739203843107,-292.8706028,0.00011,2]
[352622435,1739203843120,-137280.36620621,0.00011,2]
[352622439,1739203843149,-471.64641658,0.00011,2]
[352622446,1739203843204,-150885.056036,0.00011,2]
[352622752,1739203846331,-271.1,0.00010958,2]
[352622756,1739203846362,-228.9,0.00010958,2]
[352622758,1739203846372,-2771.1,0.00011,2]
[352622761,1739203846394,-27213.33158735,0.00011,2]
[352622765,1739203846419,-696.054795,0.00011,2]
[352622768,1739203846440,-564.2,0.00011,2]
[352622773,1739203846473,-524.38979124,0.00011,2]
[352622775,1739203846484,-2355.69165982,0.00011,2]
[352622777,1739203846496,-350074.21932096,0.00011,2]
[352623662,1739204310764,150.0,0.00019754,120]
[352623663,1739204370799,150.0,0.00019831,120]
[352623664,1739204730715,150.0,0.00019763,120]
[352623666,1739204737179,7602.22441243,8e-05,2]